{"text_format":"3","workbook":"xlsx","n_sheets":1,"sheets":["Výpožičný zoznam kníh"],"not_rendered":{"defined_names":4},"read":"whole","date_system":"1900"}

{"sheet":"Výpožičný zoznam kníh","index":0,"n_rows":9,"n_cols":8,"rows_kept":9,"merged":[[0,1,0,4],[0,5,0,6]]}
[null,"Výpožičný zoznam kníh z knižnice",{"$nulls":3},"DNI DO KONCA VÝPOŽIČKY: ",null,10]
["Po termíne","ŠTUDENT","KONTAKTNÝ E-MAIL","KONTAKTNÝ TELEFÓN","NÁZOV KNIHY","DÁTUM VÝPOŽIČKY","DÁTUM VRÁTENIA","DNI"]
[{"$f":"IFERROR(((Knihy[[#This Row],[DÁTUM VÝPOŽIČKY]]+PočetDní)<TODAY())*(LEN(Knihy[[#This Row],[DÁTUM VRÁTENIA]])=0)*(LEN(Knihy[[#This Row],[DÁTUM VÝPOŽIČKY]])>0),0)","v":0},"Anna Horváthová","meno@example.com","0925 55 51 58","Domček v prérii",{"$f":"DATE(YEAR(TODAY()),1,14)","v":"2018-01-14"},{"$f":"DATE(YEAR(TODAY()),1,21)","v":"2018-01-21"},{"$f":"IFERROR(IF(Knihy[[#This Row],[DÁTUM VRÁTENIA]]=\"\",IF(Knihy[[#This Row],[DÁTUM VÝPOŽIČKY]]<>\"\", TODAY()-Knihy[[#This Row],[DÁTUM VÝPOŽIČKY]],\"\"),Knihy[[#This Row],[DÁTUM VRÁTENIA]]-Knihy[[#This Row],[DÁTUM VÝPOŽIČKY]]), \"\")","v":7}]
[{"$f":"IFERROR(((Knihy[[#This Row],[DÁTUM VÝPOŽIČKY]]+PočetDní)<TODAY())*(LEN(Knihy[[#This Row],[DÁTUM VRÁTENIA]])=0)*(LEN(Knihy[[#This Row],[DÁTUM VÝPOŽIČKY]])>0),0)","v":0},"Igor Konečný","meno@example.com","0925 55 51 59","Šarlotina pavučinka",{"$f":"DATE(YEAR(TODAY()),2,15)","v":"2018-02-15"},{"$f":"DATE(YEAR(TODAY()),2,18)","v":"2018-02-18"},{"$f":"IFERROR(IF(Knihy[[#This Row],[DÁTUM VRÁTENIA]]=\"\",IF(Knihy[[#This Row],[DÁTUM VÝPOŽIČKY]]<>\"\", TODAY()-Knihy[[#This Row],[DÁTUM VÝPOŽIČKY]],\"\"),Knihy[[#This Row],[DÁTUM VRÁTENIA]]-Knihy[[#This Row],[DÁTUM VÝPOŽIČKY]]), \"\")","v":3}]
[{"$f":"IFERROR(((Knihy[[#This Row],[DÁTUM VÝPOŽIČKY]]+PočetDní)<TODAY())*(LEN(Knihy[[#This Row],[DÁTUM VRÁTENIA]])=0)*(LEN(Knihy[[#This Row],[DÁTUM VÝPOŽIČKY]])>0),0)","v":0},"Marek Hudec","meno@example.com","0925 55 51 60","O psíčkovi a mačičke",{"$f":"DATE(YEAR(TODAY()),2,17)","v":"2018-02-17"},{"$f":"DATE(YEAR(TODAY()),2,22)","v":"2018-02-22"},{"$f":"IFERROR(IF(Knihy[[#This Row],[DÁTUM VRÁTENIA]]=\"\",IF(Knihy[[#This Row],[DÁTUM VÝPOŽIČKY]]<>\"\", TODAY()-Knihy[[#This Row],[DÁTUM VÝPOŽIČKY]],\"\"),Knihy[[#This Row],[DÁTUM VRÁTENIA]]-Knihy[[#This Row],[DÁTUM VÝPOŽIČKY]]), \"\")","v":5}]
[{"$f":"IFERROR(((Knihy[[#This Row],[DÁTUM VÝPOŽIČKY]]+PočetDní)<TODAY())*(LEN(Knihy[[#This Row],[DÁTUM VRÁTENIA]])=0)*(LEN(Knihy[[#This Row],[DÁTUM VÝPOŽIČKY]])>0),0)","v":0},"Tomáš Lukáč","meno@example.com","0925 55 51 61","Zlatá kniha rozprávok",{"$f":"DATE(YEAR(TODAY()),2,17)","v":"2018-02-17"},{"$f":"DATE(YEAR(TODAY()),2,25)","v":"2018-02-25"},{"$f":"IFERROR(IF(Knihy[[#This Row],[DÁTUM VRÁTENIA]]=\"\",IF(Knihy[[#This Row],[DÁTUM VÝPOŽIČKY]]<>\"\", TODAY()-Knihy[[#This Row],[DÁTUM VÝPOŽIČKY]],\"\"),Knihy[[#This Row],[DÁTUM VRÁTENIA]]-Knihy[[#This Row],[DÁTUM VÝPOŽIČKY]]), \"\")","v":8}]
[{"$f":"IFERROR(((Knihy[[#This Row],[DÁTUM VÝPOŽIČKY]]+PočetDní)<TODAY())*(LEN(Knihy[[#This Row],[DÁTUM VRÁTENIA]])=0)*(LEN(Knihy[[#This Row],[DÁTUM VÝPOŽIČKY]])>0),0)","v":0},"Ema Vargová","meno@example.com","0925 55 51 62","Matilda",{"$f":"DATE(YEAR(TODAY()),2,18)","v":"2018-02-18"},{"$f":"DATE(YEAR(TODAY()),2,28)","v":"2018-02-28"},{"$f":"IFERROR(IF(Knihy[[#This Row],[DÁTUM VRÁTENIA]]=\"\",IF(Knihy[[#This Row],[DÁTUM VÝPOŽIČKY]]<>\"\", TODAY()-Knihy[[#This Row],[DÁTUM VÝPOŽIČKY]],\"\"),Knihy[[#This Row],[DÁTUM VRÁTENIA]]-Knihy[[#This Row],[DÁTUM VÝPOŽIČKY]]), \"\")","v":10}]
[{"$f":"IFERROR(((Knihy[[#This Row],[DÁTUM VÝPOŽIČKY]]+PočetDní)<TODAY())*(LEN(Knihy[[#This Row],[DÁTUM VRÁTENIA]])=0)*(LEN(Knihy[[#This Row],[DÁTUM VÝPOŽIČKY]])>0),0)","v":1},"Natália Molnárová","meno@example.com","0925 55 51 63","Kroniky Narnie",{"$f":"DATE(YEAR(TODAY()),1,23)","v":"2018-01-23"},null,{"$f":"IFERROR(IF(Knihy[[#This Row],[DÁTUM VRÁTENIA]]=\"\",IF(Knihy[[#This Row],[DÁTUM VÝPOŽIČKY]]<>\"\", TODAY()-Knihy[[#This Row],[DÁTUM VÝPOŽIČKY]],\"\"),Knihy[[#This Row],[DÁTUM VRÁTENIA]]-Knihy[[#This Row],[DÁTUM VÝPOŽIČKY]]), \"\")","v":163}]
[{"$f":"IFERROR(((Knihy[[#This Row],[DÁTUM VÝPOŽIČKY]]+PočetDní)<TODAY())*(LEN(Knihy[[#This Row],[DÁTUM VRÁTENIA]])=0)*(LEN(Knihy[[#This Row],[DÁTUM VÝPOŽIČKY]])>0),0)","v":0},"Lucia Blahošová","meno@example.com","0925 55 51 64","Pes baskervillský",{"$f":"TODAY()","v":"2018-07-05"},null,{"$f":"IFERROR(IF(Knihy[[#This Row],[DÁTUM VRÁTENIA]]=\"\",IF(Knihy[[#This Row],[DÁTUM VÝPOŽIČKY]]<>\"\", TODAY()-Knihy[[#This Row],[DÁTUM VÝPOŽIČKY]],\"\"),Knihy[[#This Row],[DÁTUM VRÁTENIA]]-Knihy[[#This Row],[DÁTUM VÝPOŽIČKY]]), \"\")","v":0}]